fUST/lending_fUST_20250814
["ID","MTS","AMOUNT","RATE_DAILY","PERIOD"]
[379107975,1755144646229,-566.16,0.00018225,2]
[379107976,1755144646239,-203.8,0.00018226,2]
[379107977,1755144646257,-1256.53,0.00018226,2]
[379107978,1755144646277,-460.0,0.00018226,2]
[379107979,1755144646290,-500.0,0.00018315,2]
[379107980,1755144646299,-151.0,0.00018315,2]
[379107981,1755144646308,-151.0,0.00018315,2]
[379107982,1755144646318,-305.51800407,0.00018315,2]
[379107983,1755144646329,-194.48199593,0.00018315,2]
[379107984,1755144646338,-500.0,0.00018315,2]
[379107985,1755144646347,-151.0,0.00018315,2]
[379107986,1755144646356,-500.0,0.00018315,2]
[379107987,1755144646365,-151.0,0.00018315,2]
[379107988,1755144646376,-151.0,0.00018315,2]
[379107989,1755144646385,-151.0,0.00018315,2]
[379107990,1755144646395,-151.0,0.00018315,2]
[379107991,1755144646404,-10361.69296399,0.00018325,2]
[379107992,1755144646413,-500.0,0.00018325,2]
[379107993,1755144646422,-597.56,0.00018325,2]
[379107994,1755144646431,-1539.14,0.00018325,2]
[379107995,1755144646440,-13155.09885059,0.00018325,2]
[379107996,1755144646451,-6800.04114941,0.00018325,2]
[379107997,1755144646461,-3619.82,0.00018325,2]
[379107998,1755144646471,-1296.35,0.00018325,2]
[379107999,1755144646480,-517.02003065,0.00018325,2]
[379108000,1755144646491,-1042.35996935,0.00018325,2]
[379108001,1755144646500,-460.0,0.00018325,2]
[379108002,1755144646509,-206.19521092,0.00018325,2]
[379108003,1755144646521,-2392.90478908,0.00018325,2]
[379108004,1755144646531,-460.0,0.00018325,2]
[379108005,1755144646540,-1324.71,0.00018325,2]
[379108006,1755144646549,-460.0,0.00018326,2]
[379108007,1755144646558,-460.0,0.00018326,2]
[379108008,1755144646567,-460.0,0.00018326,2]
[379108009,1755144646577,-460.0,0.00018326,2]
[379108010,1755144646586,-471.23636158,0.00018326,2]
[379108011,1755144646596,-460.0,0.00018326,2]
[379108012,1755144646605,-183.96912499,0.00018326,2]
[379108013,1755144646622,-276.03087501,0.00018326,2]
[379108014,1755144646631,-153.32460768,0.00018326,2]
[379108015,1755144646642,-300.51875237,0.00018326,2]
[379108016,1755144646663,-7.76319511,0.00018326,2]
[379108017,1755144646674,-461.23403783,0.00018326,2]
[379108018,1755144646686,-1021.54,0.00018326,2]
[379108019,1755144646695,-460.0,0.00018326,2]
[379108020,1755144646705,-460.0,0.00018326,2]
[379108021,1755144646714,-460.0,0.00018326,2]
[379108022,1755144646724,-460.0,0.00018326,2]
[379108023,1755144646734,-460.0,0.00018326,2]
[379108024,1755144646743,-460.0,0.00018326,2]
[379108025,1755144646752,-460.0,0.00018326,2]
[379108026,1755144646761,-460.0,0.00018326,2]
[379108027,1755144646771,-460.0,0.00018326,2]
[379108028,1755144646781,-460.0,0.00018326,2]
[379108029,1755144646790,-460.0,0.00018326,2]
[379108030,1755144646800,-460.0,0.00018326,2]
[379108031,1755144646811,-539.62,0.00018326,2]
[379108032,1755144646821,-457.88256585,0.00018326,2]
[379108065,1755145272771,463.881557,0.00013699,2]
[379108079,1755145569880,4406.65,0.00023,30]
[379108112,1755145756988,235.0,0.00025,120]
[379108174,1755145832480,-865.44487128,0.00018122,2]
[379108175,1755145832534,-170.2891682,0.00018122,2]
[379108176,1755145832546,-166.95641089,0.00018124,2]
[379108177,1755145832556,-1200.0,0.00018212,2]
[379108178,1755145832565,-300.0,0.00018213,2]
[379108179,1755145832575,-300.0,0.00018213,2]
[379108180,1755145832584,-195.0,0.00018213,2]
[379108181,1755145832594,-300.0,0.00018213,2]
[379108182,1755145832603,-300.0,0.00018213,2]
[379108183,1755145832612,-500.0,0.00018213,2]
[379108184,1755145832622,-151.0,0.00018213,2]
[379108185,1755145832631,-500.0,0.00018213,2]
[379108186,1755145832641,-152.11094071,0.00018213,2]
[379108187,1755145832650,-151.0,0.00018213,2]
[379108188,1755145832659,-151.0,0.00018213,2]
[379108189,1755145832668,-500.0,0.00018213,2]
[379108190,1755145832677,-151.0,0.00018213,2]
[379108191,1755145832687,-500.0,0.00018213,2]
[379108192,1755145832696,-151.0,0.00018213,2]
[379108193,1755145832705,-500.0,0.00018213,2]
[379108194,1755145832715,-500.0,0.00018213,2]
[379108195,1755145832724,-151.0,0.00018213,2]
[379108196,1755145832733,-151.0,0.00018213,2]
[379108197,1755145832742,-151.0,0.00018213,2]
[379108198,1755145832751,-151.0,0.00018213,2]
[379108199,1755145832760,-168.72937333,0.00018213,2]
[379108200,1755145832769,-500.0,0.00018213,2]
[379108201,1755145832778,-500.0,0.00018213,2]
[379108202,1755145832788,-500.0,0.00018213,2]
[379108203,1755145832798,-500.0,0.00018213,2]
[379108204,1755145832807,-151.0,0.00018213,2]
[379108205,1755145832816,-500.0,0.00018213,2]
[379108206,1755145832826,-500.0,0.00018213,2]
[379108207,1755145832835,-173.08443572,0.00018213,2]
[379108208,1755145832845,-618.92336512,0.00018213,2]
[379108209,1755145832854,-607.8,0.00018215,3]
[379108210,1755145832863,-202.6,0.00018215,3]
[379108211,1755145832873,-607.82,0.00018215,3]
[379108212,1755145832882,-460.0,0.00018221,2]
[379108213,1755145832891,-460.0,0.00018221,2]
[379108214,1755145832900,-721.35,0.00018221,2]
[379108215,1755145832910,-976.63,0.00018221,2]
[379108217,1755145832919,-698.21,0.00018221,2]
[379108218,1755145832929,-2639.69,0.00018221,2]
[379108219,1755145832938,-460.0,0.00018221,2]
[379108220,1755145832947,-460.0,0.00018221,2]
[379108221,1755145832957,-460.0,0.00018221,2]
[379108222,1755145832967,-460.0,0.00018222,2]
[379108223,1755145832976,-520.55445531,0.00018222,2]
[379108224,1755145832986,-920.06,0.00018222,2]
[379108225,1755145832996,-553.06,0.00018222,2]
[379108226,1755145833006,-460.0,0.00018222,2]
[379108227,1755145833015,-5234.78,0.00018222,2]
[379108228,1755145833025,-460.0,0.00018222,2]
[379108229,1755145833036,-4946.5,0.00018222,2]
[379108230,1755145833046,-460.0,0.00018222,2]
[379108231,1755145833056,-1035.32,0.00018222,2]
[379108232,1755145833067,-460.0,0.00018222,2]
[379108233,1755145833077,-460.0,0.00018222,2]
[379108234,1755145833090,-460.0,0.00018222,2]
[379108235,1755145833100,-460.0,0.00018222,2]
[379108236,1755145833111,-2288.3,0.00018222,2]
[379108237,1755145833120,-1038.07,0.00018222,2]
[379108238,1755145833133,-437.46193103,0.00018222,2]
[379108239,1755145833160,-300.45576664,0.00018222,2]
[379108240,1755145833183,-2555.8790778,0.00018222,2]
[379108253,1755145838379,-640.05,0.00018221,2]
[379108254,1755145838389,-1769.63322453,0.00018222,2]
[379108255,1755145838398,-1855.32770482,0.00018222,2]
[379108256,1755145838409,-2344.73623375,0.00018222,2]
[379108258,1755145838434,-145.80606143,0.00018222,2]
[379108259,1755145838444,-460.0,0.00018222,2]
[379108260,1755145838453,-1483.51,0.00018222,2]
[379108261,1755145838462,-917.17,0.00018222,2]
[379108262,1755145838471,-462.79011224,0.00018222,2]
[379108263,1755145838480,-596.68,0.00018222,2]
[379108264,1755145838489,-1229.46,0.00018222,2]
[379108265,1755145838498,-480.59,0.00018222,2]
[379108266,1755145838508,-1279.07,0.00018222,2]
[379108267,1755145838517,-1614.29,0.00018222,2]
[379108268,1755145838526,-460.0,0.00018222,2]
[379108269,1755145838535,-2469.86186513,0.00018222,2]
[379108295,1755145840332,-503.01188397,0.00018222,2]
[379108299,1755145840363,-74.0562509,0.00018222,2]
[379108300,1755145840373,-460.0,0.00018223,2]
[379108302,1755145840382,-24.46684259,0.00018223,2]
[379108306,1755145840428,-258.22,0.00018223,2]
[379108308,1755145840439,-177.31315741,0.00018223,2]
[379108309,1755145840448,-125.06784261,0.00018223,2]
[379108537,1755145843870,-5016.67,0.00018221,2]
[379108538,1755145843879,-460.0,0.00018222,2]
[379108539,1755145843889,-334.93215739,0.00018223,2]
[379108540,1755145843898,-460.0,0.00018223,2]
[379108541,1755145843908,-460.0,0.00018223,2]
[379108542,1755145843917,-460.0,0.00018223,2]
[379108543,1755145843927,-460.0,0.00018223,2]
[379108544,1755145843936,-460.0,0.00018223,2]
[379108545,1755145843945,-462.80027185,0.00018223,2]
[379108546,1755145843955,-460.0,0.00018223,2]
[379108547,1755145843964,-460.0,0.00018223,2]
[379108548,1755145843974,-603.68,0.00018223,2]
[379108549,1755145843983,-788.08,0.00018223,2]
[379108550,1755145843993,-1055.6,0.00018223,2]
[379108551,1755145844003,-460.0,0.00018223,2]
[379108553,1755145844012,-460.0,0.00018223,2]
[379108554,1755145844021,-460.0,0.00018223,2]
[379108555,1755145844031,-460.0,0.00018223,2]
[379108556,1755145844040,-460.0,0.00018223,2]
[379108557,1755145844049,-460.0,0.00018223,2]
[379108558,1755145844059,-460.0,0.00018223,2]
[379108559,1755145844068,-460.0,0.00018223,2]
[379108560,1755145844078,-632.66,0.00018223,2]
[379108561,1755145844090,-460.0,0.00018223,2]
[379108562,1755145844099,-460.0,0.00018223,2]
[379108564,1755145844108,-246.26798135,0.00018223,2]
[379108565,1755145844118,-173.33692677,0.00018223,2]
[379108566,1755145844127,-460.0,0.00018223,2]
[379108567,1755145844137,-460.0,0.00018223,2]
[379108568,1755145844148,-460.0,0.00018223,2]
[379108569,1755145844158,-460.0,0.00018223,2]
[379108570,1755145844168,-460.0,0.00018223,2]
[379108571,1755145844177,-460.0,0.00018223,2]
[379108572,1755145844187,-1037.86,0.00018223,2]
[379108573,1755145844196,-460.0,0.00018223,2]
[379108575,1755145844205,-460.0,0.00018223,2]
[379108577,1755145844214,-460.85991417,0.00018223,2]
[379108579,1755145844223,-588.48,0.00018223,2]
[379108581,1755145844233,-1637.59,0.00018223,2]
[379108583,1755145844242,-460.0,0.00018223,2]
[379108585,1755145844251,-837.54,0.00018223,2]
[379108586,1755145844261,-413.69329111,0.00018223,2]
[379108587,1755145844281,-165.96670889,0.00018223,2]
[379108588,1755145844290,-573.29,0.00018223,2]
[379108589,1755145844299,-1273.06,0.00018223,2]
[379108590,1755145844309,-1045.55,0.00018223,2]
[379108591,1755145844318,-460.0,0.00018223,2]
[379108592,1755145844327,-460.0,0.00018223,2]
[379108593,1755145844336,-460.0,0.00018223,2]
[379108594,1755145844345,-356.14959018,0.00018223,2]
[379108607,1755146020103,277.56475006,0.00018024,2]
[379108612,1755146099128,800.0,0.00025999,120]
[379108613,1755146178275,440.687479,0.00013699,2]
[379108616,1755146417394,937073.52559694,0.00023,30]
[379108617,1755146417421,2072302.60440306,0.00023,30]
[379108618,1755146552190,158.944388,0.00022744,30]
[379108620,1755146702734,151.20390113,0.00018022,2]
[379108628,1755146869878,165.95780041,0.0001802,2]
[379108647,1755147032688,-906.26728451,0.00018111,2]
[379108648,1755147032697,-243.54850773,0.00018112,2]
[379108649,1755147032709,-135.76145656,0.00018112,2]
[379108650,1755147032718,-1200.0,0.00018121,2]
[379108651,1755147032727,-1108.0,0.00018122,2]
[379108652,1755147032736,-300.0,0.00018122,2]
[379108653,1755147032746,-300.0,0.00018122,2]
[379108654,1755147032755,-299.0,0.00018122,2]
[379108655,1755147032765,-7005.54856289,0.00018123,2]
[379108657,1755147032774,-379.30996427,0.00018183,2]
[379108658,1755147032784,-2199.23250255,0.00018201,2]
[379108659,1755147032794,-460.0,0.0001821,2]
[379108660,1755147032803,-737.33,0.0001821,2]
[379108661,1755147032813,-999.32,0.0001821,2]
[379108662,1755147032822,-2725.83,0.0001821,2]
[379108663,1755147032832,-688.29,0.0001821,2]
[379108664,1755147032840,-460.0,0.0001821,2]
[379108665,1755147032850,-151.0,0.0001821,2]
[379108666,1755147032859,-151.29320897,0.0001821,2]
[379108667,1755147032869,-500.0,0.0001821,2]
[379108668,1755147032878,-500.0,0.0001821,2]
[379108669,1755147032887,-500.0,0.0001821,2]
[379108670,1755147032897,-500.0,0.0001821,2]
[379108671,1755147032906,-500.0,0.0001821,2]
[379108672,1755147032915,-500.0,0.0001821,2]
[379108674,1755147032924,-151.0,0.0001821,2]
[379108676,1755147032933,-500.0,0.0001821,2]
[379108678,1755147032942,-151.0,0.0001821,2]
[379108680,1755147032951,-500.0,0.0001821,2]
[379108682,1755147032960,-151.0,0.0001821,2]
[379108684,1755147032970,-500.0,0.0001821,2]
[379108685,1755147032979,-151.0,0.0001821,2]
[379108686,1755147032988,-500.0,0.0001821,2]
[379108688,1755147032998,-151.0,0.0001821,2]
[379108690,1755147033008,-500.0,0.0001821,2]
[379108692,1755147033017,-151.0,0.0001821,2]
[379108693,1755147033027,-500.0,0.0001821,2]
[379108695,1755147033038,-151.0,0.0001821,2]
[379108697,1755147033048,-500.0,0.0001821,2]
[379108699,1755147033059,-151.0,0.0001821,2]
[379108701,1755147033071,-648.12769935,0.0001821,2]
[379108703,1755147033080,-151.0,0.0001821,2]
[379108705,1755147033090,-151.0,0.0001821,2]
[379108707,1755147033100,-151.0,0.0001821,2]
[379108709,1755147033109,-151.0,0.0001821,2]
[379108711,1755147033119,-151.0,0.0001821,2]
[379108713,1755147033129,-151.0,0.0001821,2]
[379108715,1755147033138,-151.0,0.0001821,2]
[379108717,1755147033148,-151.0,0.0001821,2]
[379108719,1755147033157,-151.0,0.0001821,2]
[379108721,1755147033167,-5991.10336521,0.00018211,2]
[379108723,1755147033176,-464.84430149,0.00018211,2]
[379108725,1755147033185,-460.0,0.00018211,2]
[379108727,1755147033195,-468.17852833,0.00018211,2]
[379108729,1755147033204,-460.0,0.00018211,2]
[379108731,1755147033213,-460.0,0.00018211,2]
[379108733,1755147033223,-460.0,0.00018211,2]
[379108735,1755147033232,-460.0,0.00018211,2]
[379108737,1755147033242,-460.0,0.00018211,2]
[379108739,1755147033252,-353.8614717,0.00018211,2]
[379108741,1755147033261,-460.0,0.00018211,2]
[379108743,1755147033271,-461.65352643,0.00018211,2]
[379108745,1755147033280,-466.23268704,0.00018211,2]
[379108748,1755147033290,-462.85466851,0.00018211,2]
[379108750,1755147033302,-464.3603185,0.00018211,2]
[379108752,1755147033312,-467.87529036,0.00018211,2]
[379108754,1755147033322,-461.25430514,0.00018211,2]
[379108756,1755147033336,-1.52961477,0.00018211,2]
[379108758,1755147033346,-460.0,0.00018211,2]
[379108760,1755147033356,-460.0,0.00018211,2]
[379108762,1755147033367,-52.1213388,0.00018211,2]
[379109051,1755147038979,-460.0,0.0001821,2]
[379109053,1755147038990,-460.0,0.0001821,2]
[379109055,1755147039001,-464.44428695,0.00018211,2]
[379109058,1755147039012,-462.06107763,0.00018211,2]
[379109060,1755147039023,-881.73,0.00018211,2]
[379109062,1755147039034,-528.58508104,0.00018211,2]
[379109064,1755147039045,-460.0,0.00018211,2]
[379109066,1755147039056,-460.0,0.00018211,2]
[379109068,1755147039068,-464.53394899,0.00018211,2]
[379109070,1755147039079,-530.02,0.00018211,2]
[379109073,1755147039090,-460.0,0.00018211,2]
[379109075,1755147039101,-461.62108008,0.00018211,2]
[379109077,1755147039112,-460.0,0.00018211,2]
[379109079,1755147039124,-460.0,0.00018211,2]
[379109081,1755147039135,-463.05012134,0.00018211,2]
[379109083,1755147039146,-3397.34596071,0.00018211,2]
[379109086,1755147039160,-435.0,0.00018211,2]
[379109090,1755147039190,-1345.05403929,0.00018211,2]
[379109092,1755147039201,-460.0,0.00018211,2]
[379109095,1755147039212,-460.0,0.00018211,2]
[379109097,1755147039223,-460.0,0.00018211,2]
[379109099,1755147039234,-460.0,0.00018211,2]
[379109101,1755147039245,-460.0,0.00018211,2]
[379109103,1755147039255,-460.0,0.00018211,2]
[379109105,1755147039266,-460.0,0.00018211,2]
[379109108,1755147039277,-4740.4,0.00018211,2]
[379109110,1755147039288,-311.97778688,0.00018211,2]
[379109112,1755147039299,-460.0,0.00018211,2]
[379109114,1755147039311,-460.0,0.00018211,2]
[379109116,1755147039322,-1030.72,0.00018211,2]
[379109118,1755147039333,-460.0,0.00018211,2]
[379109121,1755147039344,-462.2422269,0.00018211,2]
[379109123,1755147039355,-465.86862037,0.00018211,2]
[379109125,1755147039366,-460.0,0.00018211,2]
[379109127,1755147039377,-464.21858737,0.00018211,2]
[379109129,1755147039388,-463.79369154,0.00018211,2]
[379109131,1755147039399,-460.0,0.00018211,2]
[379109134,1755147039410,-460.0,0.00018211,2]
[379109136,1755147039423,-460.0,0.00018211,2]
[379109138,1755147039434,-465.42199997,0.00018211,2]
[379109140,1755147039445,-466.52583585,0.00018211,2]
[379109142,1755147039458,-460.0,0.00018211,2]
[379109145,1755147039471,-2309.85,0.00018211,2]
[379109147,1755147039482,-460.0,0.00018211,2]
[379109149,1755147039494,-460.0,0.00018211,2]
[379109151,1755147039505,-623.34,0.00018211,2]
[379109153,1755147039517,-452.49325883,0.00018211,2]
[379109155,1755147039528,-460.0,0.00018211,2]
[379109157,1755147039539,-460.0,0.00018211,2]
[379109160,1755147039551,-1069.1,0.00018211,2]
[379109162,1755147039562,-460.0,0.00018211,2]
[379109164,1755147039574,-460.0,0.00018211,2]
[379109166,1755147039586,-460.0,0.00018211,2]
[379109168,1755147039597,-2438.36,0.00018211,2]
[379109170,1755147039608,-4467.82,0.00018211,2]
[379109173,1755147039620,-460.0,0.00018211,2]
[379109175,1755147039633,-460.0,0.00018211,2]
[379109177,1755147039646,-461.2872879,0.00018211,2]
[379109179,1755147039660,-472.41,0.00018211,2]
[379109181,1755147039671,-460.0,0.00018211,2]
[379109183,1755147039682,-460.0,0.00018211,2]
[379109185,1755147039694,-224.36102908,0.00018211,2]
[379109188,1755147039705,-550.96,0.00018211,2]
[379109190,1755147039717,-470.80845691,0.00018211,2]
[379109192,1755147039729,-461.02704623,0.00018211,2]
[379109194,1755147039740,-7626.84,0.00018211,2]
[379109196,1755147039751,-460.0,0.00018211,2]
[379109199,1755147039763,-460.0,0.00018211,2]
[379109201,1755147039774,-203.10384304,0.00018211,2]
[379109203,1755147039785,-462.15346282,0.00018211,2]
[379109205,1755147039796,-460.0,0.00018211,2]
[379109207,1755147039807,-522.67,0.00018211,2]
[379109209,1755147039818,-460.0,0.00018211,2]
[379109211,1755147039830,-938.41,0.00018211,2]
[379109214,1755147039841,-460.0,0.00018211,2]
[379109216,1755147039853,-465.14540568,0.00018211,2]
[379109218,1755147039864,-460.0,0.00018211,2]
[379109220,1755147039877,-460.0,0.00018211,2]
[379109222,1755147039888,-460.0,0.00018211,2]
[379109224,1755147039899,-460.0,0.00018211,2]
[379109226,1755147039910,-464.78658964,0.00018211,2]
[379109228,1755147039921,-462.09363894,0.00018211,2]
[379109231,1755147039932,-638.97,0.00018211,2]
[379109233,1755147039943,-460.0,0.00018211,2]
[379109235,1755147039954,-505.15,0.00018211,2]
[379109237,1755147039967,-1275.63,0.00018211,2]
[379109239,1755147039977,-464.87719973,0.00018211,2]
[379109241,1755147039990,-460.0,0.00018211,2]
[379109244,1755147040001,-460.0,0.00018211,2]
[379109247,1755147040012,-465.36534231,0.00018211,2]
[379109249,1755147040022,-1225.78,0.00018211,2]
[379109251,1755147040034,-3103.64,0.00018211,2]
[379109253,1755147040046,-500.0,0.00018211,2]
[379109256,1755147040059,-500.0,0.00018211,2]
[379109258,1755147040069,-274.53139468,0.00018211,2]
[379109260,1755147040079,-500.0,0.00018211,2]
[379109263,1755147040089,-503.88189227,0.00018211,2]
[379109265,1755147040099,-500.0,0.00018211,2]
[379109267,1755147040108,-500.0,0.00018211,2]
[379109269,1755147040117,-515.80422355,0.00018211,2]
[379109272,1755147040129,-500.0,0.00018211,2]
[379109275,1755147040139,-500.0,0.00018211,2]
[379109277,1755147040148,-500.0,0.00018211,2]
[379109279,1755147040161,-650.29562971,0.00018211,2]
[379109281,1755147040172,-500.0,0.00018211,2]
[379109283,1755147040182,-500.0,0.00018211,2]
[379109285,1755147040191,-500.0,0.00018211,2]
[379109287,1755147040201,-500.0,0.00018211,2]
[379109289,1755147040211,-500.0,0.00018211,2]
[379109291,1755147040220,-1571.49,0.00018211,2]
[379109293,1755147040229,-371.43,0.00018211,3]
[379109295,1755147040239,-185.71,0.00018211,3]
[379109321,1755147040505,-557.18,0.00018211,3]
[379109322,1755147040524,-460.0,0.00018212,2]
[379109323,1755147040538,-460.0,0.00018212,2]
[379109324,1755147040547,-460.0,0.00018212,2]
[379109325,1755147040557,-460.0,0.00018212,2]
[379109326,1755147040567,-460.0,0.00018212,2]
[379109327,1755147040576,-348.32714073,0.00018212,2]
[379109329,1755147040585,-460.0,0.00018212,2]
[379109331,1755147040595,-460.0,0.00018212,2]
[379109333,1755147040605,-460.0,0.00018212,2]
[379109335,1755147040615,-289.07120505,0.00018212,2]
[379109337,1755147040626,-462.40865336,0.00018212,2]
[379109339,1755147040635,-1216.8,0.00018212,2]
[379109341,1755147040644,-2068.71,0.00018212,2]
[379109343,1755147040654,-1036.16,0.00018212,2]
[379109345,1755147040663,-461.63460395,0.00018212,2]
[379109347,1755147040672,-460.0,0.00018212,2]
[379109349,1755147040681,-460.0,0.00018212,2]
[379109351,1755147040690,-460.0,0.00018212,2]
[379109353,1755147040699,-460.0,0.00018212,2]
[379109355,1755147040708,-466.62826441,0.00018212,2]
[379109357,1755147040718,-682.98,0.00018212,2]
[379109359,1755147040727,-460.0,0.00018212,2]
[379109361,1755147040736,-461.73871891,0.00018212,2]
[379109363,1755147040745,-460.0,0.00018212,2]
[379109365,1755147040754,-460.0,0.00018212,2]
[379109367,1755147040763,-1021.38,0.00018212,2]
[379109369,1755147040773,-460.0,0.00018212,2]
[379109371,1755147040782,-460.0,0.00018212,2]
[379109373,1755147040792,-460.0,0.00018212,2]
[379109375,1755147040801,-460.0,0.00018212,2]
[379109377,1755147040810,-460.0,0.00018212,2]
[379109379,1755147040820,-460.0,0.00018212,2]
[379109381,1755147040829,-460.0,0.00018212,2]
[379109383,1755147040838,-460.0,0.00018212,2]
[379109385,1755147040847,-460.0,0.00018212,2]
[379109387,1755147040856,-1609.22,0.00018212,2]
[379109389,1755147040865,-460.0,0.00018212,2]
[379109391,1755147040874,-1063.48,0.00018212,2]
[379109393,1755147040883,-608.75,0.00018212,2]
[379109395,1755147040892,-460.0,0.00018212,2]
[379109397,1755147040901,-460.0,0.00018212,2]
[379109399,1755147040910,-460.59,0.00018212,2]
[379109400,1755147040919,-265.82465332,0.00018212,2]
[379109402,1755147040929,-1280.6,0.00018212,2]
[379109405,1755147040938,-574.68,0.00018212,2]
[379109407,1755147040947,-589.78,0.00018212,2]
[379109408,1755147040956,-460.0,0.00018212,2]
[379109411,1755147040966,-460.0,0.00018212,2]
[379109413,1755147040975,-15126.92,0.00018212,2]
[379109415,1755147040984,-460.0,0.00018212,2]
[379109417,1755147040993,-578.13,0.00018212,2]
[379109419,1755147041002,-460.0,0.00018212,2]
[379109420,1755147041011,-500.0,0.00018212,2]
[379109422,1755147041020,-460.0,0.00018212,2]
[379109424,1755147041029,-460.0,0.00018212,2]
[379109426,1755147041038,-932.56,0.00018212,2]
[379109428,1755147041047,-460.0,0.00018212,2]
[379109430,1755147041057,-460.0,0.00018212,2]
[379109432,1755147041066,-1602.78,0.00018212,2]
[379109434,1755147041076,-467.36921939,0.00018212,2]
[379109436,1755147041085,-460.0,0.00018212,2]
[379109438,1755147041094,-460.0,0.00018212,2]
[379109440,1755147041103,-1642.59,0.00018212,2]
[379109442,1755147041112,-1013.43,0.00018212,2]
[379109444,1755147041121,-460.0,0.00018212,2]
[379109446,1755147041131,-460.0,0.00018212,2]
[379109448,1755147041140,-460.0,0.00018212,2]
[379109450,1755147041150,-460.0,0.00018212,2]
[379109452,1755147041160,-460.0,0.00018212,2]
[379109454,1755147041169,-935.05,0.00018212,2]
[379109456,1755147041178,-1450.89,0.00018212,2]
[379109458,1755147041187,-12364.29,0.00018212,2]
[379109461,1755147041197,-460.0,0.00018212,2]
[379109462,1755147041206,-460.0,0.00018212,2]
[379109464,1755147041215,-460.0,0.00018212,2]
[379109467,1755147041225,-460.88,0.00018212,2]
[379109469,1755147041235,-460.0,0.00018212,2]
[379109471,1755147041244,-481.12,0.00018212,2]
[379109473,1755147041253,-460.0,0.00018212,2]
[379109475,1755147041263,-460.0,0.00018212,2]
[379109477,1755147041272,-1406.98,0.00018212,2]
[379109479,1755147041281,-500.0,0.00018219,2]
[379109481,1755147041290,-460.82993709,0.00018219,2]
[379109483,1755147041299,-200.30039571,0.00018219,2]
[379109485,1755147041308,-1206.26,0.00018219,2]
[379109487,1755147041317,-465.18418043,0.00018219,2]
[379109489,1755147041326,-1441.62,0.00018219,2]
[379109491,1755147041336,-19123.68,0.00018219,2]
[379109493,1755147041345,-3694.25,0.00018219,2]
[379109495,1755147041354,-1421.56,0.00018219,2]
[379109497,1755147041363,-1581.32,0.00018219,2]
[379109498,1755147041372,-460.0,0.0001822,2]
[379109501,1755147041382,-460.0,0.0001822,2]
[379109503,1755147041391,-460.0,0.0001822,2]
[379109504,1755147041401,-460.0,0.0001822,2]
[379109507,1755147041410,-460.0,0.0001822,2]
[379109508,1755147041424,-460.0,0.0001822,2]
[379109510,1755147041433,-460.0,0.0001822,2]
[379109513,1755147041442,-460.0,0.0001822,2]
[379109514,1755147041451,-474.59717677,0.0001822,2]
[379109516,1755147041461,-460.0,0.0001822,2]
[379109518,1755147041470,-460.0,0.0001822,2]
[379109521,1755147041479,-460.0,0.0001822,2]
[379109523,1755147041489,-516.46984362,0.0001822,2]
[379109524,1755147041499,-460.0,0.0001822,2]
[379109526,1755147041508,-463.93983291,0.0001822,2]
[379109528,1755147041517,-326.91305723,0.0001822,2]
[379109530,1755147041526,-460.0,0.0001822,2]